Cogmind - Beta 13 @@@ ROGUE MODE // 2024.07.05 @ 21:58:35 Player: Sionnis Result: Destroyed by H-66 Slayer with Gauss Rifle Performance ------------- Evolutions (4) 2000 Regions Visited (10) 2000 Robots Destroyed (272) 1360 Value Destroyed (10526) 10526 Prototype IDs (12) 240 Alien Tech Used (0) 0 Bonus (4033) 4033 TOTAL SCORE: 20159 Bonus ------- High Alert Combat Kills 3100 Follower Combat Kills 524 Entered Garrisons 400 Acquired ECA 300 Friendly Fire -291 Cogmind --------- Core Integrity 0/850 Matter 292/300 Energy 161/170 System Corruption 2% Temperature Cool (20) Movement Treading (340) Ox2 Location -6/Lower Caves Parts ------- > --- POWER (2) -------- Light Antimatter Reactor > --- PROPULSION (4) --- Medium Treads Spiked Medium Treads Flexi-carbon Leg > --- UTILITY (6) ------ Advanced Heat Sink Huge Storage Unit Advanced Targeting Computer Core Analyzer Improved Light Armor Plating Layered Medium Armor Plating > --- WEAPON (3) ------- Heavy Phase Cannon Heavy Machine Gun > --- INVENTORY (25) --- Fusion Compressor Compact Wheel Huge Storage Unit Improved Sensor Array Encrypted Comm Array Advanced Targeting Computer Advanced Targeting Computer Core Analyzer Energy Filter Improved Light Armor Plating Improved Heavy Armor Plating Graphene Brace Remote Force Field Plasma Rifle Phase Cannon Heavy Mass Driver Power Maul Peak State ------------ > --- POWER ------------ Neutrino Core Light Quantum Reactor > --- PROPULSION ------- Light Treads Improved Medium Treads Improved Heavy Treads > --- UTILITY ---------- Improved Cooling System Huge Storage Unit Advanced Targeting Computer Core Analyzer Advanced Phase Shifter Hardened Medium Armor Plating > --- WEAPON ----------- Flak Gun Heavy Machine Gun KE Penetrator > --- INVENTORY -------- Deuterium Engine Light Antimatter Reactor Light Treads Light Treads Improved Medium Treads Advanced Heat Sink Improved Coolant Injector Huge Storage Unit Advanced Signal Interpreter Advanced Targeting Computer Advanced Targeting Computer Improved Weapon Cycler Improved Medium Armor Plating Layered Medium Armor Plating Layered Medium Armor Plating Medium Reflective Plating Medium Reflective Plating Graphene Brace Heavy Phase Cannon Coil Gun KE Penetrator Heavy Mass Driver Power Maul [Rating: 84] Favorites ----------- Power Neutrino Core Engine Cooled Ion Engine Power Core Neutrino Core Reactor Light Quantum Reactor Propulsion Light Treads Treads Light Treads Leg Carbon-fiber Leg Wheel Compact Wheel Utility Huge Storage Unit Device Advanced Heat Sink Storage Huge Storage Unit Processor Advanced Targeting Computer Protection Layered Medium Armor Plating Weapon Improved EM Pulse Cannon Energy Gun Shock Rifle Energy Cannon Improved EM Pulse Cannon Ballistic Gun Flak Gun Ballistic Cannon Light Cannon Launcher Advanced EMP Blaster Impact Weapon Mace Build | -11 -10 -9 -9 -8 -8 -7 -7 -6 -6 -6 ------- Run | Yrd Mat Mat Sto Mat Gar Fac Gar Fac Low Low Slots Evolved 8 | . . 2 . 2 . 2 . 2 . . Power 1 | . . . . . . 1 . . . . Propulsion 2 | . . 1 . . . 1 . . . . Utility 4 | . . 1 . 1 . . . 2 . . Weapon 1 | . . . . 1 . . . . . . Parts Attached 282 | 7 10 22 25 38 29 27 27 73 18 6 Power 29 | 1 2 3 2 . 2 3 5 8 2 1 Engine 18 | 1 1 3 2 . 1 1 1 6 2 . Core 9 | . 1 . . . 1 2 3 2 . . Reactor 2 | . . . . . . . 1 . . 1 Propulsion 54 | 2 1 4 3 8 5 4 7 13 5 2 Treads 45 | 2 1 4 3 8 5 4 7 7 2 2 Leg 7 | . . . . . . . . 5 2 . Wheel 2 | . . . . . . . . 1 1 . Hover . | . . . . . . . . . . . Flight . | . . . . . . . . . . . Utility 98 | 1 2 6 9 14 7 9 5 36 7 2 Device 38 | . . . 1 3 1 6 2 19 6 . Storage 6 | 1 1 . 1 1 . 2 . . . . Processor 7 | . . 1 . 2 . . 1 3 . . Hackware . | . . . . . . . . . . . Protection 47 | . 1 5 7 8 6 1 2 14 1 2 Artifact . | . . . . . . . . . . . Weapon 101 | 3 5 9 11 16 15 11 10 16 4 1 Energy Gun 39 | 2 3 3 . 3 7 7 3 10 1 . Energy Cannon 33 | . 1 4 9 11 4 2 . 1 1 . Ballistic Gun 18 | 1 1 1 . . . . 7 5 2 1 Ballistic Cannon 6 | . . 1 . . 3 2 . . . . Launcher 3 | . . . . 2 1 . . . . . Special Weapon . | . . . . . . . . . . . Impact Weapon 2 | . . . 2 . . . . . . . Slashing Weapon . | . . . . . . . . . . . Piercing Weapon . | . . . . . . . . . . . Special Melee Weapon . | . . . . . . . . . . . Unidentified Prototypes 10 | . . 3 1 4 . 2 . . . . Corrupted Parts 6 | . . . . . 4 . 2 . . . System Corruption 39 | . . . . . 27 . 12 . . . Parts Lost 74 | . 1 5 2 2 11 4 14 20 7 8 Power 9 | . . . . . 1 . 2 2 2 2 Propulsion 22 | . . 2 . . 3 2 5 6 2 2 Utility 13 | . . . 2 . 1 1 1 6 . 2 Weapon 30 | . 1 3 . 2 6 1 6 6 3 2 Highest Loss Streak 10 | . 1 2 2 2 7 3 7 10 3 5 To Critical Strikes . | . . . . . . . . . . . Average Slot Usage (%) 96 | . 97 98 98 96 95 98 94 92 98 82 Engine 7 | . 10 10 10 9 3 5 . 8 13 . Core 3 | . 3 . . . 5 8 12 1 . . Treads 23 | . 27 32 33 26 26 29 26 12 3 13 Leg 3 | . . . . . . . . 8 20 6 Device 3 | . . . . 1 2 4 2 10 12 8 Storage 8 | . 14 11 11 9 9 7 7 6 6 6 Processor 7 | . . . . 8 9 7 11 14 13 13 Protection 12 | . 13 21 21 14 13 9 6 6 6 10 Energy Gun 9 | . 17 16 . . 12 17 8 10 16 . Energy Cannon 8 | . 7 5 20 24 8 3 . . 1 6 Ballistic Gun 3 | . 2 . . . . . 13 7 1 8 Naked Turns . | . . . . . . . . . . . Heaviest Build 141 | 12 53 65 106 129 132 141 131 136 135 128 Greatest Support 125 | 40 40 60 60 62 90 100 115 125 60 76 Greatest Overweight (x) 8 | 1 1 1 1 2 2 2 2 7 8 7 Average Overweight (x) 1 | . . . 1 1 1 1 1 . 3 1 Largest Inventory Capacity 25 | 8 20 20 25 25 25 25 25 25 25 25 Average Capacity 24 | 6 19 20 24 25 25 25 25 25 25 25 Most Carried 25 | 3 16 20 25 25 25 25 25 25 24 21 Average Carried 21 | 1 13 18 22 24 23 23 21 23 22 18 Final Capacity 25 | 8 20 20 25 25 25 25 25 25 25 25 Final Carried 25 | 3 15 20 25 22 25 25 24 23 21 19 Class Distribution -------------------- 37% | Scavenger-Gunner 19% | Mutant 10% | Tank 10% | Scavenger-Tank 9% | Scavenger-Mutant 6% | Commander-Mutant 4% | Gunner Dominant Class ---------------- Mutant | -10/Materials Mutant | -9/Materials Commander-Mutant | -9/Storage Tank | -8/Materials Scavenger-Tank | -8/Garrison Scavenger-Gunner | -7/Factory Scavenger-Gunner | -7/Garrison Scavenger-Gunner | -6/Factory Scavenger-Gunner | -6/Lower Caves Derelict-Mutant | -6/Lower Caves Resources | -11 -10 -9 -9 -8 -8 -7 -7 -6 -6 -6 ----------- Run | Yrd Mat Mat Sto Mat Gar Fac Gar Fac Low Low Matter Collected 5253 | 219 125 309 250 385 696 356 956 1480 271 206 Remotely 10 | . . . . . . . . 10 . . Salvage Created 13896 | . 248 1681 1171 1997 1860 739 1829 3635 487 249 Parts 623 | . 17 89 75 108 95 29 61 132 6 11 Haulers Intercepted 17 | . 1 4 6 4 . 1 . 1 . . Recyclers Shooed 5 | . . . . . . 1 . 4 . . Parts Field Recycled . | . . . . . . . . . . . Retrieved Matter . | . . . . . . . . . . . Parts Self-Destructed 14 | . . . . . . . . . 4 10 Prevented 1 | . . . . . . . . . 1 . Kills | -11 -10 -9 -9 -8 -8 -7 -7 -6 -6 -6 ------- Run | Yrd Mat Mat Sto Mat Gar Fac Gar Fac Low Low Combat Hostiles Destroyed 211 | . 5 28 16 32 34 10 26 46 8 6 Guns 106 | . 4 18 . . 6 6 23 39 5 5 Cannons 65 | . 1 7 11 22 16 4 . 3 . 1 AOE 18 | . . 1 2 4 8 . 3 . . . Classes Destroyed 20 | . 5 4 1 3 2 . 2 3 . . Worker 7 | . . . . . . . . 7 . . Builder 2 | . 1 . 1 . . . . . . . Hauler 17 | . 1 4 6 4 . 1 . 1 . . Recycler 9 | . . 2 1 1 . 1 . 4 . . Mechanic 4 | . . 1 1 1 . . . 1 . . Operator 6 | . . 1 2 1 . 2 . . . . Watcher 14 | . 2 3 . 5 . . . 4 . . Swarmer 34 | . 3 8 4 6 4 . 6 . . 3 Cutter 2 | . . . . . . . 2 . . . Saboteur 1 | . . . . . . . . 1 . . Grunt 92 | . 2 10 7 14 15 4 9 25 6 . Brawler 9 | . . . 1 1 . . 2 4 1 . Duelist 5 | . . . . . . . 2 2 . 1 Protector 2 | . . . . . . . . 2 . . Sentry 32 | . . 10 5 6 4 2 2 2 . 1 Specialist 5 | . . . . 2 . . 1 2 . . Hunter 18 | . . . . 2 6 2 3 4 1 . Programmer 9 | . . . . . 3 2 . 3 . 1 Heavy 1 | . . . . 1 . . . . . . Behemoth 3 | . . . . . 2 . . 1 . . Best Kill Streak 11 | . 5 6 6 6 11 3 9 11 4 4 Combat Bots Only 11 | . 3 6 6 6 11 2 9 11 4 4 Max Kills in Single Turn 3 | . 1 1 1 2 3 2 2 2 1 1 Gunslinging 1 | . . . . . . 1 . . . . Exploded 3 | . . 1 1 2 3 . 1 . . . Melee . | . . . . . . . . . . . Uniques/NPCs Destroyed . | . . . . . . . . . . . Combat | -11 -10 -9 -9 -8 -8 -7 -7 -6 -6 -6 -------- Run | Yrd Mat Mat Sto Mat Gar Fac Gar Fac Low Low Hostile Shots Fired 1435 | . 29 123 66 124 204 154 187 380 70 98 Missed 432 | . 10 26 12 42 67 58 62 110 12 33 Damage Taken 15680 | . 231 1152 851 1591 2465 1026 1780 4283 1365 936 Core 1497 | . 28 123 105 80 143 66 94 360 397 101 Absorbed by Shields 406 | . . . . 36 . . . 286 84 . Reduced by Siege Mode 158 | . . . . . . . . 158 . . Ignored by Resistances 358 | . . . . 110 98 . . 150 . . Regen/Repaired (Parts) 760 | . 175 133 197 255 . . . . . . Core Remaining (%) 73 | 100 88 . 43 . 59 . 77 . . . Volleys Fired 653 | . 16 86 49 67 99 28 102 152 35 19 Largest 3 | . 2 2 2 3 3 3 3 3 3 3 Hottest 255 | . 100 101 112 207 196 196 165 255 245 189 Shots Fired 1400 | . 32 165 97 128 157 70 250 366 84 51 Gun 970 | . 25 115 . . 58 60 250 351 80 31 Cannon 417 | . 7 50 97 125 89 10 . 15 4 20 Launcher 13 | . . . . 3 10 . . . . . Special . | . . . . . . . . . . . Kinetic 381 | . 3 1 . . 33 5 122 185 4 28 Thermal 257 | . 7 . . . . . . 147 80 23 Explosive . | . . . . . . . . . . . Electromagnetic 762 | . 22 164 97 128 124 65 128 34 . . Robot Hit Streak 71 | . 10 31 14 12 18 9 24 71 15 6 Robot Miss Streak 6 | . 4 4 3 2 2 3 5 6 2 4 Penetration Max 2 | . . . . . 1 . . 2 . 1 Secondary Targets 18 | . 1 3 . . . 1 9 3 1 . Max Gunslinging Chain 1 | . 1 1 . . . 1 1 1 1 . Shots Hit Robots 978 | . 21 123 67 79 101 50 152 295 63 27 Core Hits 639 | . 10 60 30 44 64 22 176 204 19 10 Critical Kills 5 | . . . . . . . 1 4 . . Critical Parts Destroyed 4 | . . . . . . . . 4 . . Critical Strikes 61 | . 2 1 2 5 4 1 4 27 15 . Burn 34 | . . . . . . . . 19 15 . Destroy 9 | . . . . . . . 1 8 . . Blast 3 | . . . . . 2 1 . . . . Corrupt 15 | . 2 1 2 5 2 . 3 . . . Melee Attacks 2 | . . . 2 . . . . . . . Impact 2 | . . . 2 . . . . . . . Slashing . | . . . . . . . . . . . Piercing . | . . . . . . . . . . . Sneak Attacks . | . . . . . . . . . . . Combat Hostiles . | . . . . . . . . . . . Follow-up Attacks . | . . . . . . . . . . . Damage Inflicted 24901 | . 483 2691 1794 2764 3480 1177 3436 7045 1272 759 Guns 14290 | . 220 1469 . . 749 738 3196 6310 1169 439 Cannons 7682 | . 87 836 1548 2325 1657 319 . 487 103 320 Explosions 2860 | . 175 378 227 432 1074 120 240 214 . . Melee . | . . . . . . . . . . . Ramming 69 | . 1 8 19 7 . . . 34 . . Kinetic 7468 | . 25 16 . . 696 240 2121 3929 24 417 Thermal 6017 | . 262 288 227 254 335 120 240 2701 1248 342 Explosive . | . . . . . . . . . . . Electromagnetic 11347 | . 195 2379 1548 2503 2449 817 1075 381 . . Impact . | . . . . . . . . . . . Slashing . | . . . . . . . . . . . Piercing . | . . . . . . . . . . . Highest Corruption 28 | . . . 1 . 28 . 12 6 1 2 Average Corruption 9 | . . . 1 . 26 . 11 3 1 1 Corruption Purged 5 | . . . . . . . . 5 . . Corruption Blocked . | . . . . . . . . . . . Effects 252 | . . . 9 . 99 . 75 46 16 7 Message Errors 59 | . . . 5 . 20 . 19 10 4 1 Matter Fused 66 | . . . . . 26 . 26 9 4 1 Heat Flow Errors 22 | . . . 2 . 7 . 5 3 2 3 Energy Discharges 33 | . . . 1 . 13 . 11 5 3 . Parts Rejected 4 | . . . . . 1 . 1 2 . . Parts Fused 4 | . . . . . 1 . 1 2 . . Data Loss (minor) 25 | . . . . . 12 . 8 5 . . Data Loss (major) 11 | . . . 1 . 5 . . 3 2 . Misfires 10 | . . . . . 5 . 2 2 . 1 Alerts 3 | . . . . . 2 . . . . 1 Misdirections 1 | . . . . . 1 . . . . . Weapon Failures 14 | . . . . . 6 . 2 5 1 . Overload Shots . | . . . . . . . . . . . Overflow Damage 348 | . 8 49 50 36 101 75 . 10 17 2 Projectiles 273 | . . 48 50 24 81 51 . . 17 2 Explosions 75 | . 8 1 . 12 20 24 . 10 . . Melee . | . . . . . . . . . . . Knockbacks 6 | . . . . . 6 . . . . . Impact . | . . . . . . . . . . . Kinetic 6 | . . . . . 6 . . . . . Secondary . | . . . . . . . . . . . Self-Inflicted Damage 465 | . 5 37 89 39 80 54 91 70 . . Shots 14 | . 1 1 2 1 5 1 2 1 . . Rammed 10 | . 2 2 2 1 . . . 3 . . Targets Rammed 12 | . 2 2 3 1 . . . 4 . . Kicked 1 | . . . . . . . . 1 . . Crushed 1 | . . . 1 . . . . . . . Highest Temperature 842 | . 228 433 356 321 459 546 360 608 842 236 Average Temperature 122 | . 73 108 100 124 116 143 93 145 279 67 Received Heat Transfer 4504 | . 36 393 282 480 489 375 396 1584 409 60 Effects 71 | . . 7 1 4 5 10 2 15 27 . Shutdowns 20 | . . 2 . . 2 4 . 4 8 . Energy Bleed 15 | . . 2 . 4 2 2 2 1 2 . Interference 15 | . . . 1 . . 1 . 8 5 . Matter Decay 5 | . . 1 . . 1 . . . 3 . Short Circuit 5 | . . . . . . 1 . 2 2 . Damage (minor) 4 | . . 2 . . . 1 . . 1 . Damage (major) 5 | . . . . . . 1 . . 4 . Damage (core) 2 | . . . . . . . . . 2 . Siege Activations 6 | . . . . . . . . 6 . . Total Turns 210 | . . . . . . . . 210 . . Longest Duration 71 | . . . . . . . . 71 . . Robots Corrupted 19 | . . 3 4 6 6 . . . . . Combat Hostiles 15 | . . 2 3 6 4 . . . . . Parts Fried 69 | . . 18 7 14 15 11 4 . . . Impact Corruptions . | . . . . . . . . . . . Robots Melted 7 | . . . . . . . . 4 3 . Combat Hostiles 7 | . . . . . . . . 4 3 . Parts Melted 49 | . 1 1 1 . . . . 34 11 1 Heat Transferred 15167 | . 485 500 400 350 450 150 200 7883 4379 370 Parts Sabotaged . | . . . . . . . . . . . Parts Stolen . | . . . . . . . . . . . Parts Stripped . | . . . . . . . . . . . Power Chain Reactions 32 | . 2 8 4 5 6 2 4 1 . . Alert | -11 -10 -9 -9 -8 -8 -7 -7 -6 -6 -6 ------- Run | Yrd Mat Mat Sto Mat Gar Fac Gar Fac Low Low Peak Influence 1847 | . 93 429 632 446 1643 874 1847 1533 . . Initial 969 | . . 4 180 52 276 862 515 969 . . Average 643 | . 41 296 443 142 915 769 1082 1195 . . Maximum Alert Level 5 | . . 2 2 2 5 3 5 4 . . Low Security (%) 22 | 100 100 15 8 77 . . . . . . Level 1 14 | . . 69 11 20 9 . . . . . Level 2 20 | . . 15 79 1 23 21 14 . . . Level 3 22 | . . . . . 24 78 39 45 . . Level 4 18 | . . . . . 42 . 32 54 . . Level 5 1 | . . . . . . . 12 . . . High Security . | . . . . . . . . . . . Max Security . | . . . . . . . . . . . Squads Dispatched 30 | . . 2 3 6 . 6 . 13 . . Investigation 7 | . . 1 1 . . 1 . 4 . . Extermination 5 | . . . . . . 2 . 3 . . Reinforcement 10 | . . 1 1 3 . 3 . 2 . . Assault 5 | . . . 1 . . . . 4 . . Garrison 3 | . . . . 3 . . . . . . Intercept . | . . . . . . . . . . . Searches Triggered . | . . . . . . . . . . . Construction Impeded 2 | . . . . 1 . . . 1 . . Haulers Reinforced 1 | . . . . . . 1 . . . . Active Scanning Responses . | . . . . . . . . . . . Cargo Convoy Interrupts . | . . . . . . . . . . . Stealth | -11 -10 -9 -9 -8 -8 -7 -7 -6 -6 -6 --------- Run | Yrd Mat Mat Sto Mat Gar Fac Gar Fac Low Low Distress Signals 12 | . . 3 6 1 . 1 . 1 . . Communications Jammed . | . . . . . . . . . . . Distress Signals . | . . . . . . . . . . . Times Spotted 293 | . 10 36 29 49 35 13 34 68 11 8 Peak Tracking Total 9 | . 3 7 6 8 8 4 7 9 4 3 Tactical Retreats 18 | . . 1 3 6 2 . 2 1 3 . Traps | -11 -10 -9 -9 -8 -8 -7 -7 -6 -6 -6 ------- Run | Yrd Mat Mat Sto Mat Gar Fac Gar Fac Low Low Traps Triggered 24 | . 2 . 2 . 11 1 6 2 . . Indirectly 3 | . . . . . 3 . . . . . Trap Hack Attempts . | . . . . . . . . . . . Triggered . | . . . . . . . . . . . Disarmed 5 | . . . 5 . . . . . . . Reprogrammed . | . . . . . . . . . . . Reused . | . . . . . . . . . . . Traps Extracted . | . . . . . . . . . . . Installed . | . . . . . . . . . . . Triggered 3 | . . . . . 1 . . 1 1 . Machines | -11 -10 -9 -9 -8 -8 -7 -7 -6 -6 -6 ---------- Run | Yrd Mat Mat Sto Mat Gar Fac Gar Fac Low Low Machines Disabled 18 | . . 4 2 . 1 1 6 4 . . Max in Single Turn 2 | . . 2 1 . 1 1 2 1 . . Garrison Access 2 | . . . 1 . . . . 1 . . Garrison Relay 5 | . . . . . 1 . 4 . . . Phase Generator 1 | . . . . . . . 1 . . . Machines Repaired . | . . . . . . . . . . . Machines Dismantled . | . . . . . . . . . . . Machines Sabotaged . | . . . . . . . . . . . Overloaded Fab Kills . | . . . . . . . . . . . Hacking | -11 -10 -9 -9 -8 -8 -7 -7 -6 -6 -6 --------- Run | Yrd Mat Mat Sto Mat Gar Fac Gar Fac Low Low Machines Accessed 65 | . 8 8 14 14 3 6 1 11 . . Terminals 39 | . 5 4 10 9 3 2 1 5 . . Fabricators 1 | . . . . . . 1 . . . . Repair Stations 9 | . 1 2 2 2 . . . 2 . . Recycling Units 10 | . 2 2 1 1 . 1 . 3 . . Scanalyzers 2 | . . . . 1 . 1 . . . . Garrison Access 4 | . . . 1 1 . 1 . 1 . . Total Hacks 180 | . 27 24 46 44 5 12 2 20 . . Successful 95 | . 16 11 29 23 . 8 1 7 . . Failed 84 | . 11 12 17 21 5 4 1 13 . . Catastrophic 14 | . . 1 1 4 3 . . 5 . . Database Lockouts 1 | . . 1 . . . . . . . . Manual 80 | . 14 13 22 23 . 4 . 4 . . Terminals 107 | . 15 16 26 28 5 4 2 11 . . Fabricators 2 | . . . . . . 2 . . . . Repair Stations 43 | . 10 4 16 10 . . . 3 . . Recycling Units 16 | . 2 4 1 2 . 3 . 4 . . Scanalyzers 4 | . . . . 2 . 2 . . . . Garrison Access 8 | . . . 3 2 . 1 . 2 . . Terminal Hacks 28 | . 3 3 10 7 . . 1 4 . . Part Schematic 2 | . . 1 1 . . . . . . . Robot Analysis 4 | . 2 1 . 1 . . . . . . Prototype ID Bank 1 | . 1 . . . . . . . . . Open Door 2 | . . . 2 . . . . . . . Emergency Access Points 1 | . . . . . . . 1 . . . Terminal Index 1 | . . . . . . . . 1 . . Alert Level 5 | . . . 2 2 . . . 1 . . Unreport Threat 6 | . . . 3 3 . . . . . . Disarm Traps 1 | . . . 1 . . . . . . . Hauler Manifests 5 | . . 1 1 1 . . . 2 . . Fabricator Hacks 2 | . . . . . . 2 . . . . Load Schematic 1 | . . . . . . 1 . . . . Build 1 | . . . . . . 1 . . . . Repair Station Hacks 35 | . 9 4 14 8 . . . . . . Scan Component 19 | . 5 2 7 5 . . . . . . Repair 16 | . 4 2 7 3 . . . . . . Recycling Unit Hacks 9 | . 2 1 1 2 . 1 . 2 . . Retrieve Components 9 | . 2 1 1 2 . 1 . 2 . . Scanalyzer 4 | . . . . 2 . 2 . . . . Insert Component 2 | . . . . 1 . 1 . . . . Analyze 2 | . . . . 1 . 1 . . . . Garrison Access Hacks 4 | . . . 1 1 . 1 . 1 . . Unlock Access 2 | . . . . 1 . 1 . . . . Seal Access 2 | . . . 1 . . . . 1 . . Unauthorized Hacks 13 | . 2 3 3 3 . 2 . . . . Terminals 13 | . 2 3 3 3 . 2 . . . . Botnet 10 | . 2 2 2 2 . 2 . . . . Operators 3 | . . 1 1 1 . . . . . . Fabricators . | . . . . . . . . . . . Repair Stations . | . . . . . . . . . . . Recycling Units . | . . . . . . . . . . . Scanalyzers . | . . . . . . . . . . . Garrison Access . | . . . . . . . . . . . Data Cores Recovered 1 | . . . 1 . . . . . . . Used . | . . . . . . . . . . . Hacking Detections 54 | . 7 7 10 13 3 4 1 9 . . Full Trace Events 7 | . . . 1 1 1 1 . 3 . . Feedback Events . | . . . . . . . . . . . Feedback Blocked . | . . . . . . . . . . . Robot Schematics Acquired . | . . . . . . . . . . . Robots Built . | . . . . . . . . . . . Authchips . | . . . . . . . . . . . Time . | . . . . . . . . . . . Total Robot Build Rating . | . . . . . . . . . . . Part Schematics Acquired 4 | . . 1 1 1 . 1 . . . . Parts Built 1 | . . . . . . 1 . . . . Authchips . | . . . . . . . . . . . Time 25 | . . . . . . 25 . . . . Total Part Build Rating 1 | . . . . . . 1 . . . . Parts Repaired 16 | . 4 2 7 3 . . . . . . Time 613 | . 104 64 295 150 . . . . . . Parts Recycled . | . . . . . . . . . . . Recycled Matter . | . . . . . . . . . . . Retrieved Matter . | . . . . . . . . . . . Retrieved Components 53 | . 12 10 10 . . 10 . 11 . . Parts Scanalyzed 2 | . . . . 1 . 1 . . . . Part Schematics Acquired 2 | . . . . 1 . 1 . . . . Parts Damaged . | . . . . . . . . . . . Bothacking | -11 -10 -9 -9 -8 -8 -7 -7 -6 -6 -6 ------------ Run | Yrd Mat Mat Sto Mat Gar Fac Gar Fac Low Low Used RIF Installer . | . . . . . . . . . . . Robots Hacked . | . . . . . . . . . . . Non-combat . | . . . . . . . . . . . Combat . | . . . . . . . . . . . Robot Hacks Applied . | . . . . . . . . . . . Relay Couplers Released 21 | . . . . . 3 . 18 . . . Machine Destruction 21 | . . . . . 3 . 18 . . . Fabnet Peak Effective % . | . . . . . . . . . . . Robots Rewired 6 | . . . . . . . 6 . . . Allies Hacked . | . . . . . . . . . . . Hacks Repelled . | . . . . . . . . . . . Allies | -11 -10 -9 -9 -8 -8 -7 -7 -6 -6 -6 -------- Run | Yrd Mat Mat Sto Mat Gar Fac Gar Fac Low Low Total Allies 16 | . . . 10 . . . 6 . . . Largest Group 10 | . . . 10 . . . 6 . . . Highest-Rated Group 132 | . . . 88 . . . 132 . . . Highest-Rated Ally 24 | . . . 16 . . . 24 . . . Total Orders . | . . . . . . . . . . . Ally Attacks 123 | . . . 83 . . . 40 . . . Total Damage 1738 | . . . 764 . . . 974 . . . Kills 23 | . . . 15 . . . 8 . . . Allies Corrupted . | . . . . . . . . . . . Allies Melted . | . . . . . . . . . . . Intel | -11 -10 -9 -9 -8 -8 -7 -7 -6 -6 -6 ------- Run | Yrd Mat Mat Sto Mat Gar Fac Gar Fac Low Low Robot Analysis Total 4 | . 2 1 . 1 . . . . . . Derelict Logs Recovered 1 | . . . . . . . . . . 1 Drone Launches . | . . . . . . . . . . . Drone Recoveries . | . . . . . . . . . . . Exploration | -11 -10 -9 -9 -8 -8 -7 -7 -6 -6 -6 ------------- Run | Yrd Mat Mat Sto Mat Gar Fac Gar Fac Low Low Turns Passed 19177 | 71 1057 1859 2412 2770 2402 1409 2407 2376 1741 673 Spaces Moved 6291 | 41 365 627 771 780 807 490 795 783 651 181 Core 8 | 8 . . . . . . . . . . Treads 5390 | 33 365 627 771 780 807 490 795 542 . 180 Legs 648 | . . . . . . . . 216 432 . Wheels 245 | . . . . . . . . 25 219 1 Hover . | . . . . . . . . . . . Flight . | . . . . . . . . . . . Fastest Speed 50 | 50 160 160 240 235 238 242 240 160 205 205 Average Speed 244 | 143 232 217 240 290 250 245 241 208 243 335 Slowest Speed 560 | 160 240 240 240 320 330 326 320 560 260 340 Overloaded Moves . | . . . . . . . . . . . Propulsion Burnouts . | . . . . . . . . . . . Robots Hopped . | . . . . . . . . . . . Cave-ins Triggered . | . . . . . . . . . . . Exploration Rate (%) 58 | 4 76 56 98 73 82 19 96 18 88 36 Regions Visited 10 Branch Regions 3 Pre-discovered Areas 1 | . . . . . . . . . 1 . Known Exits Taken 3 | . . 1 . 1 . 1 . . . . Unknown Exits Taken 5 | 1 1 . 1 . . . . 1 1 . Scrap Searched 6 | . . . . . . . . . 3 3 Spaces Dug 1 | . . . . . . 1 . . . . Terrain Destroyed 228 | . 2 12 21 26 23 35 86 10 1 12 Melee . | . . . . . . . . . . . Projectile 28 | . . . . . 3 4 2 6 1 12 AOE 200 | . 2 12 21 26 20 31 84 4 . . Terrain Rammed . | . . . . . . . . . . . Walls Destroyed . | . . . . . . . . . . . Machines Disabled . | . . . . . . . . . . . Actions | -11 -10 -9 -9 -8 -8 -7 -7 -6 -6 -6 --------- Run | Yrd Mat Mat Sto Mat Gar Fac Gar Fac Low Low Total 8857 | 50 538 954 1230 1173 1039 640 1078 1213 734 208 Wait 1171 | . 123 186 333 217 47 64 40 140 20 1 Move 6279 | 40 364 626 770 780 803 490 793 782 650 181 Hop . | . . . . . . . . . . . Pick Up 173 | 3 18 16 27 26 22 10 15 29 6 1 Fast Attach 115 | 6 3 9 6 18 13 9 17 27 4 3 Attach 92 | . 2 9 6 4 12 11 10 26 9 3 Detach 20 | . . 2 2 . 4 4 1 6 1 . Swap 76 | 1 5 5 13 16 4 7 . 20 5 . Drop 166 | . 5 13 19 44 21 15 18 27 4 . Fire 653 | . 16 86 49 67 99 28 102 152 35 19 Melee 2 | . . . 2 . . . . . . . Ram . | . . . . . . . . . . . Kick 1 | . . . . . . . . 1 . . Crush 11 | . 2 2 3 1 . . . 3 . . Escape Stasis 28 | . . . . . 14 2 12 . . . Rewire 70 | . . . . . . . 70 . . . Trap . | . . . . . . . . . . . Miscellaneous . | . . . . . . . . . . . Route ------- -11/Scrapyard -10/Materials (discovered 3 exits: *Mat x2 / [*Min]) -9/Materials (discovered 4 exits: *Mat x2 / *Sto x2) -9/Storage (discovered 2 exits: *Mat / [*Rec]) -8/Materials (discovered 3 exits: *Fac x2 / Gar) -8/Garrison (discovered 3 exits: *Fac x3) -7/Factory (discovered 2 exits: *Fac / Gar) -7/Garrison (discovered 3 exits: *Fac x3) -6/Factory (discovered 2 exits: *Fac / [*Low]) -6/Lower Caves -6/Lower Caves History --------- Turn | Location | Event 21 | -11/Scrapyard | Discovered new exit (range 15) 72 | -11/Scrapyard | Entered Materials 329 | -10/Materials | Build established: Mutant 535 | -10/Materials | Discovered new exit (range 16) 686 | -10/Materials | Discovered new exit (range 8) 923 | -10/Materials | Discovered new exit (range 12) 985 | -10/Materials | Repaired EM Pulse Gun 1012 | -10/Materials | Repaired EM Pulse Gun 1040 | -10/Materials | Repaired Lgt. Treads 1068 | -10/Materials | Repaired Lgt. Cannon 1129 | -10/Materials | Entered another Materials area 1129 | -9/Materials | Evolved 2 slots: Propulsion x1, Utility x1 1873 | -9/Materials | Discovered new exit (range 15) 2136 | -9/Materials | Discovered new exit (range 5) 2235 | -9/Materials | Identified exit to Storage 2414 | -9/Materials | Discovered exit to Storage (range 10) 2516 | -9/Materials | Repaired Lgt. EM Pulse Cannon 2647 | -9/Materials | Repaired Med. Armor Plating 2771 | -9/Materials | Discovered new exit (range 12) 2868 | -9/Materials | Central database locked down 2988 | -9/Materials | Entered Storage 3112 | -9/Storage | Assisted by bots powering up and referring to "LRC-V3" 3413 | -9/Storage | Build established: Commander-Mutant 3524 | -9/Storage | Repaired Imp. EM Shotgun 3668 | -9/Storage | Lost 3 allies 3807 | -9/Storage | Used back door to open Recycling access 3807 | -9/Storage | Discovered new exit (range 5) 4167 | -9/Storage | Repaired Corrupted Lgt. EM Pulse Cannon 4221 | -9/Storage | Repaired Corrupted Machine Analyzer 4254 | -9/Storage | Repaired Lgt. EM Pulse Cannon 4287 | -9/Storage | Repaired Lgt. EM Pulse Cannon 4395 | -9/Storage | Lost 4 allies 4588 | -9/Storage | First assault squad dispatched 4637 | -9/Storage | Build established: Scavenger-Mutant 4714 | -9/Storage | Core integrity fell below 50% 5100 | -9/Storage | Repaired Lgt. EM Pulse Cannon 5153 | -9/Storage | Repaired Cld. Ion Engine 5364 | -9/Storage | Discovered new exit (range 16) 5400 | -9/Storage | Entered Materials 5400 | -8/Materials | Evolved 2 slots: Utility x1, Weapon x1 5899 | -8/Materials | Build established: Tank 6091 | -8/Materials | Repaired Broken Lgt. Treads 6901 | -8/Materials | Discovered new exit (range 10) 7648 | -8/Materials | Discovered new exit (range 10) 7779 | -8/Materials | Garrison activated, responded to threat 8037 | -8/Materials | Repaired Corrupted Arm. Treads 8100 | -8/Materials | Repaired Corrupted Rnf. Deuterium Engine 8153 | -8/Materials | Build established: Gunner 8170 | -8/Materials | Identified exit to Garrison 8170 | -8/Materials | Entered Garrison 8206 | -8/Garrison | Triggered checkpoint 8470 | -8/Garrison | Triggered checkpoint 8601 | -8/Garrison | Spotted B-75 Beast 8601 | -8/Garrison | Spotted B-75 Beast 8689 | -8/Garrison | Destroyed B-75 Beast 8698 | -8/Garrison | Destroyed B-75 Beast 8705 | -8/Garrison | System corruption reached 10% 8712 | -8/Garrison | Lost 7 parts (1p2n1u3w) 8932 | -8/Garrison | Triggered checkpoint 8987 | -8/Garrison | Destroyed 11 combat bots 9018 | -8/Garrison | Triggered checkpoint 9079 | -8/Garrison | Discovered new exit (range 10) 9122 | -8/Garrison | Attempted to access garrison exit controls, blocked by remote lockdown 9526 | -8/Garrison | Triggered checkpoint 9590 | -8/Garrison | Build established: Scavenger-Tank 9866 | -8/Garrison | Triggered checkpoint 9920 | -8/Garrison | Discovered new exit (range 10) 9942 | -8/Garrison | Attempted to access garrison exit controls, blocked by remote lockdown 10252 | -8/Garrison | Triggered checkpoint 10378 | -8/Garrison | Triggered checkpoint 10540 | -8/Garrison | Discovered new exit (range 14) 10572 | -8/Garrison | Entered Factory 10572 | -7/Factory | Evolved 2 slots: Power x1, Propulsion x1 11116 | -7/Factory | Discovered new exit (range 6) 11335 | -7/Factory | Lost 3 parts (1n1u1w) 11755 | -7/Factory | Build established: Scavenger-Gunner 11826 | -7/Factory | Fabricated Huge Storage Unit (x1) 11981 | -7/Factory | Identified exit to Garrison 11981 | -7/Factory | Entered Garrison 12051 | -7/Garrison | Triggered checkpoint 12257 | -7/Garrison | Triggered checkpoint 12275 | -7/Garrison | Triggered checkpoint 12331 | -7/Garrison | System corruption reached 10% 12346 | -7/Garrison | Destroyed 9 combat bots 12355 | -7/Garrison | Lost 7 parts (1p3n3w) 12451 | -7/Garrison | Triggered checkpoint 12644 | -7/Garrison | Discovered new exit (range 10) 13143 | -7/Garrison | Triggered checkpoint 13189 | -7/Garrison | Triggered checkpoint 13252 | -7/Garrison | Discovered new exit (range 4) 13281 | -7/Garrison | Triggered checkpoint 13372 | -7/Garrison | Garrison Relay disabled 13372 | -7/Garrison | Garrison Relay disabled 13372 | -7/Garrison | Garrison Relay disabled 13409 | -7/Garrison | Lost 3 allies 13583 | -7/Garrison | Phase Generator disabled 13865 | -7/Garrison | Discovered new exit (range 9) 14091 | -7/Garrison | Triggered checkpoint 14210 | -7/Garrison | Attempted to access garrison exit controls, blocked by remote lockdown 14388 | -7/Garrison | Entered Factory 14388 | -6/Factory | Evolved 2 slots: Utility x2 14684 | -6/Factory | Spotted B-75 Beast 14702 | -6/Factory | Destroyed B-75 Beast 14738 | -6/Factory | First assault squad dispatched 14884 | -6/Factory | Destroyed 11 combat bots 14885 | -6/Factory | Lost 10 parts (2p2n3u3w) 15609 | -6/Factory | Discovered new exit (range 6) 15618 | -6/Factory | Identified exit to Factory 15963 | -6/Factory | Lost 7 parts (4n1u2w) 16759 | -6/Factory | Discovered new exit (range 2) 16764 | -6/Factory | Entered Lower Caves 16771 | -6/Lower Caves | Met a Warlord Commander 16772 | -6/Lower Caves | Learned location of Warlord (-5) 16773 | -6/Lower Caves | Warlord Commander delivered Encrypted Comm Array 16773 | -6/Lower Caves | Found Encrypted Comm Array 17452 | -6/Lower Caves | Encountered a Warlord checkpoint 17976 | -6/Lower Caves | Core integrity fell below 50% 18005 | -6/Lower Caves | Core integrity fell below 20% 18012 | -6/Lower Caves | Lost 3 parts (2n1w) 18437 | -6/Lower Caves | Discovered new exit (range 16) 18505 | -6/Lower Caves | Entered another Lower Caves area 18566 | -6/Lower Caves | Lost 5 parts (2p1n1u1w) 18751 | -6/Lower Caves | Attracted the attention of an 0b10 checkpoint 18794 | -6/Lower Caves | Lost 3 parts (1n1u1w) 18812 | -6/Lower Caves | Learned 4 Factory zone layouts 19067 | -6/Lower Caves | Build established: Derelict-Mutant 19116 | -6/Lower Caves | Spotted B-75 Beast 19178 | -6/Lower Caves | Destroyed by H-66 Slayer with Gauss Rifle Last Messages --------------- Acquired Imp. Light Armor Plating. Acquired 53 matter. System corrupted: Heat flow error (+183). Acquired derelict log, extracted data. Data stored: Factory zone layouts (x4). OPRPZ7PM>FRL N2VCUPYASI Searching scrap... Found Imp. Trap Scanner. Found Fusion Compressor. Found ECM Suite. Found Core Analyzer. Found 24 Matter. System corrupted: Matter fused (-10). Acquired Fusion Compressor. Acquired 10 matter. System corrupted: Heat flow error (+273). System corrupted: FCS attempts to trigger Hvy. Phase Cannon. System corrupted: Hvy. Phase Cannon misfires. Penetrated by Slug. Map ----- +----------------------------------------------------+ | ???????????????????????????????????????????????# | | ???????????????????????????????????????????????# | | ???????????????????????????????????????????????# | | ???????????????????????????????????????????????# | | ??????????????????????????????????????????????## | | ?????????????????????????????????????????????## | | ?????????????????????????????????????????????# # | | ?????????????????????????????????????????????# # | | ?????????????????????????????????????????????# # | | ?????????????????????????????????????????????## | | ??????????????????????????????????????????????## | | ?????????????????????????????##????????????????# | | ????????????????????????????? ??????????????# | | ????????????????????????????? #???? ????????# | | ????????????????????????????? #??? ??????# | | ???????????????????????????## #?? ???????## | | ??????????????????????????? ### ?????????#### | | ??????????????????????????? ?????????????## | | ??????????????????????????? ???????????????? | | ???????????????????????????# # #???????????????? | | ???????????????????????????# #???????????????? | | ?????????????????????###???# #????????????????? | | ????????????????????## #??# #????????????????? | | ????????????????????# ### ##?####??????????? | | ?????????????????????# ## ### ############ | | ???????????????????????# @ | | ?????????????????????### | | ???????????????# ;######### | | ???????????????# ##### ##???????# | | ???????????????## ;#????# ###?????# | | ????????????????### #????## #?????# | | ??????????????????# ?????# #####?# | | ??????????????????#;h ??????# #?# | | ??????????????????####??????#### ### | | ???????????????????????????????## ##### #?? | | ????????????????????????????????## ##???# ##?? | | ?????????????????????????????????# #????# #??? | | ?????????????????????????????????# #????? #?? | | ?????????????????????????????????# #####?? #? | | ????????????????????????????????# ## ## # | | ????????????????????????????????## ## #?# | | ?????????????????????????????????### #?# | | ??????????????????????????????????# #?#### | | ????????????????????????????????? #????### | | ???????????????????????????????? ??????? | | ??????????????????????????????? ?????? | | ?????????????????????????????? ????? | | ????????????????????????????? #########???? | | ???????????????????????????? ????????????? | | ??????????????????????????? ????????????? | +----------------------------------------------------+ Best States ------------- Heat Dissipation 75 Coolant Potential 80 Energy Generation 39 Energy Capacity 505 Matter Stores 300 Matter Capacity 300 Sight Range 22 Robot Scan Range 15 Terrain Scan Density 10 Armor Coverage 900 Resistance: KI 20 Resistance: TH 15 Phase Shifting 15 Evasion (%) 55 Targeting Accuracy 8 Core Analysis 6 Recoil Reduction 4 Item Schematics ----------------- Lgt. EM Pulse Cannon | -9/Materials | Hacked Huge Storage Unit | -9/Storage | Hacked Graphene Brace | -8/Materials | Scanalyzed Imp. Medium Treads | -7/Factory | Scanalyzed Robot Schematics ------------------ None Fabricated ------------ Huge Storage Unit | x1 | -7/Factory Alien Tech Used ----------------- None Achievements -------------- None Challenges ------------ None Game ------ Seed ArmageddonAerolevDriver Manual? 0 Play Time 02:12:04 Cumulative 281.3 hours Start 2024.07.05 @ 19:33:28 End 2024.07.05 @ 21:58:35 Sessions 1 Manual Loads 0 Difficulty Rogue Special Mode None Game No. 227 Rogue 227 Adventurer 0 Explorer 0 Win Type - Total 23 Types 17/1/2/1/1/0/0/1/0 Lore% 77 Gallery% 86 Achievement% 89 Wizard Run 0 Options --------- Layout 1 ASCII 0 Keyboard 0 Movement Numpad Keybinds 0 Fullscreen 1 Font 24/Smallcaps Map View 50x35 Zoom Use 0% Tactical HUD 1 Map Filters NONE Filters NONE Steam 1 RUN: f1fc1502-8db3-4614-82df-cbcd6f660439